Cogmind - Beta 9.4 @@@ ROGUE MODE // 2020.01.18 @ 21:22:58 // Winter2019/RPGLIKE Player: Unknown Result: Destroyed by DAS Turret with DAS Cannon Performance ------------- Evolutions (0) 0 Regions Visited (3) 600 Robots Destroyed (36) 180 Value Destroyed (621) 621 Prototype IDs (26) 520 Alien Tech Used (0) 0 Bonus (263) 263 TOTAL SCORE: 2184 Bonus ------- Aligned with FarCom 300 Friendly Fire -37 Cogmind --------- Core Integrity 0/600 Matter 236/300 Energy 160/160 System Corruption 0% Temperature Cool (0) Movement Hovering (100) Location -10/Exiles Parts ------- > --- POWER (1) -------- Light Nuclear Core > --- PROPULSION (2) --- Light Treads Combat Antigrav System > --- UTILITY (3) ------ Improved Heat Sink Light Armor Plating EX Chip 1 > --- WEAPON (3) ------- AWS/EX-DEC Guided Plasma Cannon > --- INVENTORY (2) ---- Rocket Launcher Deploy-a-Sentry Peak State ------------ > --- POWER ------------ Light Nuclear Core > --- PROPULSION ------- Light Treads Combat Antigrav System > --- UTILITY ---------- Improved Heat Sink Light Armor Plating EX Chip 1 > --- WEAPON ----------- AWS/EX-DEC Guided Plasma Cannon > --- INVENTORY -------- Rocket Launcher Deploy-a-Sentry [Rating: 46] Favorites ----------- Power Light Nuclear Core Engine Ion Engine Power Core Light Nuclear Core Propulsion Light Treads Treads Light Treads Leg Aluminum Leg Hover Unit Combat Antigrav System Utility Light Armor Plating Device Improved Heat Sink Processor Signal Interpreter Hackware EX Chip 1 Protection Light Armor Plating Weapon EM Pulse Gun Energy Gun EM Pulse Gun Energy Cannon Guided Plasma Cannon Ballistic Gun Light Assault Rifle Launcher Grenade Launcher Build | -11 -10 -10 -10 ------- Run | Scr Mat Min Exi Slots Evolved 5 | 4 1 . . Power . | . . . . Propulsion 1 | 1 . . . Utility 2 | 1 1 . . Weapon 2 | 2 . . . Parts Attached 26 | 3 12 2 9 Power 1 | . 1 . . Engine . | . . . . Core 1 | . 1 . . Reactor . | . . . . Propulsion 3 | 1 1 . 1 Treads 2 | 1 1 . . Leg . | . . . . Wheel . | . . . . Hover 1 | . . . 1 Flight . | . . . . Utility 10 | . 6 1 3 Device 5 | . 3 1 1 Storage . | . . . . Processor 2 | . 2 . . Hackware 2 | . . . 2 Protection 1 | . 1 . . Artifact . | . . . . Weapon 12 | 2 4 1 5 Energy Gun 5 | 1 2 . 2 Energy Cannon 3 | . . . 3 Ballistic Gun 2 | 1 . 1 . Ballistic Cannon . | . . . . Launcher 2 | . 2 . . Special Weapon . | . . . . Impact Weapon . | . . . . Slashing Weapon . | . . . . Piercing Weapon . | . . . . Special Melee Weapon . | . . . . Unidentified Prototypes 1 | . . . 1 Parts Lost . | . . . . Power . | . . . . Propulsion . | . . . . Utility . | . . . . Weapon . | . . . . Highest Loss Streak . | . . . . Average Slot Usage (%) 93 | . 95 100 90 Engine 1 | . 6 . . Core 9 | . 5 11 11 Treads 21 | . 20 22 21 Device 9 | . 6 11 10 Processor 10 | . 8 11 10 Protection 10 | . 7 11 11 Energy Gun 19 | . 22 22 17 Ballistic Gun 6 | . 11 5 5 Launcher 1 | . 1 5 . Naked Turns . | . . . . Heaviest Build 29 | 9 16 16 29 Greatest Support 40 | 20 40 40 40 Greatest Overweight (x) . | . . . . Average Overweight (x) . | . . . . Largest Inventory Capacity 2 | 1 2 2 2 Average Capacity 1 | 1 1 2 2 Most Carried 2 | . 2 2 2 Average Carried 1 | . 1 2 1 Final Capacity 2 | 1 2 2 2 Final Carried 2 | . 2 2 2 Class Distribution -------------------- 42% | Scavenger-Gunner 39% | Scavenger-Mutant 16% | Gunner Dominant Class ---------------- Gunner | -10/Materials Scavenger-Gunner | -10/Mines Scavenger-Mutant | -10/Exiles Resources | -11 -10 -10 -10 ----------- Run | Scr Mat Min Exi Matter Collected 459 | 233 163 41 22 Remotely . | . . . . Salvage Created 890 | 99 286 200 305 Parts 77 | 3 39 10 25 Haulers Intercepted 1 | . 1 . . Recyclers Shooed 3 | . 1 2 . Parts Field Recycled . | . . . . Retrieved Matter . | . . . . Parts Self-Destructed . | . . . . Prevented . | . . . . Kills | -11 -10 -10 -10 ------- Run | Scr Mat Min Exi Combat Hostiles Destroyed 22 | . 12 4 6 Guns 16 | . 8 3 5 Cannons 1 | . . . 1 AOE 5 | . 4 1 . Classes Destroyed 8 | 1 5 . 2 Worker 2 | . 1 1 . Hauler 1 | . 1 . . Recycler 1 | 1 . . . Watcher 3 | . 3 . . Swarmer 3 | . 3 . . Grunt 13 | . 9 4 . Zionite 5 | . . . 5 Assembled 6 | . . . 6 Best Kill Streak 13 | 1 5 2 13 Combat Bots Only 6 | . 5 2 6 Max Kills in Single Turn 2 | 1 2 1 2 Gunslinging . | . . . . Exploded 1 | . 1 1 . Melee . | . . . . Uniques/NPCs Destroyed 1 | . . . 1 EX-DEC (-10/Exiles) EX-BIN (-10/Exiles) Combat | -11 -10 -10 -10 -------- Run | Scr Mat Min Exi Damage Taken 1119 | . 202 133 784 Core 860 | . 154 93 613 Absorbed by Shields . | . . . . Redirected to Core 612 | . 130 75 407 Core Remaining (%) 100 | 100 . . . Volleys Fired 55 | 3 31 11 10 Largest 3 | 3 3 3 1 Hottest 120 | 110 110 110 120 Shots Fired 191 | 9 91 33 58 Gun 178 | 9 88 33 48 Cannon 10 | . . . 10 Launcher 3 | . 3 . . Special . | . . . . Kinetic 44 | 3 30 11 . Thermal 63 | 6 36 11 10 Explosive 3 | . 3 . . Electromagnetic 81 | . 22 11 48 Robot Hit Streak 31 | 7 15 12 31 Robot Miss Streak 3 | 1 3 3 2 Penetration Max . | . . . . Secondary Targets 1 | . 1 . . Max Gunslinging Chain 1 | . 1 . . Autonomous 48 | . . . 48 Shots Hit Robots 139 | 7 53 23 56 Core Hits 89 | 2 27 11 49 Critical Hits 2 | . . . 2 Critical Kills . | . . . . Critical Parts Destroyed 2 | . . . 2 Melee Attacks . | . . . . Impact . | . . . . Slashing . | . . . . Piercing . | . . . . Sneak Attacks . | . . . . Combat Hostiles . | . . . . Follow-up Attacks . | . . . . Damage Inflicted 2001 | 54 696 390 861 Guns 1249 | 54 522 277 396 Cannons 352 | . . . 352 Explosions 376 | . 165 101 110 Melee . | . . . . Ramming 24 | . 9 12 3 Kinetic 122 | 9 66 47 . Thermal 1029 | 45 320 202 462 Explosive 52 | . 52 . . Electromagnetic 774 | . 249 129 396 Impact . | . . . . Slashing . | . . . . Piercing . | . . . . Highest Corruption . | . . . . Average Corruption . | . . . . Corruption Purged . | . . . . Overload Shots . | . . . . Overflow Damage 27 | . . . 27 Projectiles 1 | . . . 1 Explosions 26 | . . . 26 Melee . | . . . . Knockbacks . | . . . . Impact . | . . . . Kinetic . | . . . . Secondary . | . . . . Self-Inflicted Damage 149 | . 49 54 46 Shots 4 | . 2 1 1 Rammed 7 | . 2 4 1 Targets Rammed 7 | . 2 4 1 Kicked . | . . . . Crushed . | . . . . Highest Temperature 454 | 144 312 149 454 Average Temperature 113 | 74 105 63 207 Received Heat Transfer 105 | . 63 42 . Effects 4 | . 2 . 2 Energy Bleed 4 | . 2 . 2 Siege Activations . | . . . . Robots Corrupted . | . . . . Combat Hostiles . | . . . . Parts Fried 2 | . . . 2 Impact Corruptions . | . . . . Robots Melted 1 | . . . 1 Combat Hostiles . | . . . . Parts Melted 9 | . 1 . 8 Heat Transferred 2063 | 124 643 396 900 Parts Sabotaged . | . . . . Parts Stolen . | . . . . Parts Stripped . | . . . . Power Chain Reactions 5 | . 3 1 1 Missiles Intercepted . | . . . . Alert | -11 -10 -10 -10 ------- Run | Scr Mat Min Exi Peak Influence 254 | 5 254 127 . Average Influence 108 | 1 151 70 . Maximum Alert Level 1 | . 1 . . Low Security (%) 92 | 100 86 100 . Level 1 7 | . 13 . . Level 2 . | . . . . Level 3 . | . . . . Level 4 . | . . . . Level 5 . | . . . . High Security . | . . . . Max Security . | . . . . Squads Dispatched 2 | . 2 . . Investigation 2 | . 2 . . Extermination . | . . . . Reinforcement . | . . . . Assault . | . . . . Garrison . | . . . . Intercept . | . . . . Construction Impeded . | . . . . Haulers Reinforced . | . . . . Stealth | -11 -10 -10 -10 --------- Run | Scr Mat Min Exi Distress Signals . | . . . . Communications Jammed . | . . . . Distress Signals . | . . . . Times Spotted 39 | . 17 4 18 Peak Tracking Total 14 | . 3 2 14 Tactical Retreats 3 | . . . 3 Traps | -11 -10 -10 -10 ------- Run | Scr Mat Min Exi Traps Triggered . | . . . . Indirectly . | . . . . Trap Hack Attempts . | . . . . Triggered . | . . . . Disarmed . | . . . . Reprogrammed . | . . . . Reused . | . . . . Traps Extracted . | . . . . Installed . | . . . . Triggered . | . . . . Machines | -11 -10 -10 -10 ---------- Run | Scr Mat Min Exi Machines Disabled 3 | . . . 3 Max in Single Turn 1 | . . . 1 Machines Sabotaged . | . . . . Garrisons Compromised . | . . . . Overloaded Fab Kills . | . . . . Fab Network Shutdowns . | . . . . Hacking | -11 -10 -10 -10 --------- Run | Scr Mat Min Exi Machines Accessed 7 | . 6 . 1 Terminals 4 | . 4 . . Fabricators . | . . . . Repair Stations . | . . . . Recycling Units 2 | . 2 . . Scanalyzers . | . . . . Garrison Access . | . . . . Total Hacks 23 | . 22 . 1 Successful 10 | . 9 . 1 Failed 12 | . 12 . . Catastrophic . | . . . . Database Lockouts 2 | . 2 . . Manual 14 | . 13 . 1 Terminals 14 | . 14 . . Fabricators . | . . . . Repair Stations . | . . . . Recycling Units 8 | . 8 . . Scanalyzers . | . . . . Garrison Access . | . . . . Terminal Hacks 6 | . 5 . 1 Prototype ID Bank 2 | . 2 . . Branch Access Points 1 | . 1 . . Emergency Access Points 1 | . 1 . . Locate Traps 1 | . 1 . . EX-Prototype ID Bank 1 | . . . 1 Fabricator Hacks . | . . . . Repair Station Hacks . | . . . . Recycling Unit Hacks 1 | . 1 . . Retrieve Components 1 | . 1 . . Scanalyzer . | . . . . Garrison Access Hacks . | . . . . Unauthorized Hacks 7 | . 7 . . Terminals . | . . . . Fabricators . | . . . . Repair Stations . | . . . . Recycling Units 3 | . 3 . . Monitor 1 | . 1 . . Reject 1 | . 1 . . Mask 1 | . 1 . . Scanalyzers . | . . . . Garrison Access . | . . . . Data Cores Recovered . | . . . . Used . | . . . . Hacking Detections 4 | . 4 . . Full Trace Events 2 | . 2 . . Feedback Events . | . . . . Feedback Blocked . | . . . . Robot Schematics Acquired . | . . . . Robots Built . | . . . . Matter . | . . . . Time . | . . . . Total Robot Build Rating . | . . . . Part Schematics Acquired . | . . . . Parts Built . | . . . . Matter . | . . . . Time . | . . . . Total Part Build Rating . | . . . . Parts Repaired . | . . . . Time . | . . . . Parts Recycled . | . . . . Recycled Matter . | . . . . Retrieved Matter . | . . . . Retrieved Components 1 | . 1 . . Parts Scanalyzed . | . . . . Part Schematics Acquired . | . . . . Parts Damaged . | . . . . Bothacking | -11 -10 -10 -10 ------------ Run | Scr Mat Min Exi Used RIF Installer . | . . . . Robots Hacked . | . . . . Non-combat . | . . . . Combat . | . . . . Robot Hacks Applied . | . . . . Relay Couplers Released . | . . . . Robots Rewired . | . . . . Allies Hacked . | . . . . Hacks Repelled . | . . . . Allies | -11 -10 -10 -10 -------- Run | Scr Mat Min Exi Total Allies . | . . . . Largest Group . | . . . . Highest-Rated Group . | . . . . Highest-Rated Ally . | . . . . Total Orders . | . . . . Ally Attacks . | . . . . Total Damage . | . . . . Kills . | . . . . Allies Corrupted . | . . . . Allies Melted . | . . . . Intel | -11 -10 -10 -10 ------- Run | Scr Mat Min Exi Robot Analysis Total . | . . . . Derelict Logs Recovered 3 | . . 3 . Drone Launches . | . . . . Drone Recoveries . | . . . . Exploration | -11 -10 -10 -10 ------------- Run | Scr Mat Min Exi Turns Passed 3058 | 66 715 612 1665 Spaces Moved 1745 | 35 351 346 1013 Core . | . . . . Treads 1725 | 29 351 346 999 Legs 6 | 6 . . . Wheels . | . . . . Hover 14 | . . . 14 Flight . | . . . . Fastest Speed 100 | 120 160 160 100 Average Speed 159 | 153 160 160 159 Slowest Speed 160 | 160 160 160 160 Overloaded Moves . | . . . . Propulsion Burnouts . | . . . . Robots Hopped . | . . . . Cave-ins Triggered . | . . . . Exploration Rate (%) 61 | 3 72 81 91 Regions Visited 3 Branch Regions 2 Pre-discovered Areas 2 | . . 2 . Known Exits Taken 2 | . 1 1 . Unknown Exits Taken 1 | 1 . . . Scrap Searched 1 | . . 1 . Spaces Dug 8 | . 8 . . Terrain Destroyed 40 | . 27 9 4 Melee . | . . . . Projectile . | . . . . AOE 40 | . 27 9 4 Actions | -11 -10 -10 -10 --------- Run | Scr Mat Min Exi Total 1914 | 40 438 380 1056 Wait 42 | . 21 10 11 Move 1742 | 34 350 345 1013 Hop . | . . . . Pick Up 4 | . 2 1 1 Fast Attach 21 | 3 9 . 9 Attach . | . . . . Detach 3 | . 1 . 2 Swap 5 | . 3 2 . Drop 16 | . 5 2 9 Fire 55 | 3 31 11 10 Melee . | . . . . Ram . | . . . . Kick . | . . . . Crush 7 | . 2 4 1 Escape Stasis . | . . . . Rewire . | . . . . Trap . | . . . . Miscellaneous 19 | . 14 5 . Route ------- -11/Scrapyard -10/Materials (discovered 2 exits: *Mat / *Min) -10/Mines (discovered 2 exits: *Mat / *Exi) -10/Exiles (discovered 2 exits: [*Min x2]) History --------- Turn | Location | Event 1 | -11/Scrapyard | Upgraded with Propulsion slot (x1) 1 | -11/Scrapyard | Upgraded with Utility slot (x1) 1 | -11/Scrapyard | Upgraded with Weapon slot (x2) 1 | -11/Scrapyard | Discovered new exit (range 1) 67 | -11/Scrapyard | Entered Materials 322 | -10/Materials | Build established: Gunner 329 | -10/Materials | Identified exit to Mines 477 | -10/Materials | Central database locked down 512 | -10/Materials | Discovered new exit (range 7) 559 | -10/Materials | Reached level 2 572 | -10/Materials | Upgraded with Utility slot (x1) 782 | -10/Materials | Entered Mines 802 | -10/Mines | Learned location of Zion (-7) 879 | -10/Mines | Received a Rocket Launcher from a helpful Derelict 920 | -10/Mines | Learned 2 Materials zone layouts 1003 | -10/Mines | Discovered new exit (range 11) 1018 | -10/Mines | Identified exit to Materials 1384 | -10/Mines | Build established: Scavenger-Gunner 1386 | -10/Mines | Deemed a non-threat by the Exiles lab entrance 1388 | -10/Mines | Discovered new exit (range 5) 1392 | -10/Mines | Identified exit to Exiles 1394 | -10/Mines | Entered Exiles 1433 | -10/Exiles | Met 8R-AWN 1460 | -10/Exiles | Met EX-HEX 1503 | -10/Exiles | Met EX-BIN 1526 | -10/Exiles | Aligned with FarCom system 1527 | -10/Exiles | Given EX-Vault access code 1564 | -10/Exiles | Opened EX-Vault 1625 | -10/Exiles | Warned to stay clear of 0b10 Research branches 1676 | -10/Exiles | Met EX-DEC 1733 | -10/Exiles | Visited The Gauntlet 1998 | -10/Exiles | Discovered new exit (range 15) 2151 | -10/Exiles | Found Gui. Plasma Cannon 2157 | -10/Exiles | Found Firepult 2446 | -10/Exiles | Build established: Scavenger-Mutant 2460 | -10/Exiles | Discovered new exit (range 14) 2981 | -10/Exiles | Attacked by the Exiles 3004 | -10/Exiles | Destroyed EX-DEC 3008 | -10/Exiles | Found Prototype Energy Gun 3008 | -10/Exiles | Identified AWS/EX-DEC 3022 | -10/Exiles | Found Deploy-a-Sentry 3041 | -10/Exiles | Core integrity fell below 50% 3050 | -10/Exiles | Destroyed EX-BIN 3056 | -10/Exiles | Core integrity fell below 20% 3059 | -10/Exiles | Destroyed by DAS Turret with DAS Cannon Last Messages --------------- 03050_ EX Chip 2 fried. 03050_ EX-BIN: "You can't kill me, my evil twin will get revenge!" 03050_ EX-BIN destroyed. 03050_ Acquired 22 matter. 03051_ Penetrated by HV Slug. 03051_ HV Slug penetrates Wall. 03053_ Penetrated by HV Slug. 03053_ HV Slug penetrates Wall. 03053_ Penetrated by HV Slug. 03053_ HV Slug penetrates Wall. 03056_ Penetrated by HV Slug. 03056_ HV Slug penetrates Wall. 03056_ Penetrated by HV Slug. 03056_ HV Slug penetrates Wall. 03057_ Machine disabled. 03058_ Penetrated by HV Slug. 03058_ HV Slug penetrates Machine. 03058_ Machine disabled. 03058_ Penetrated by HV Slug. 03058_ HV Slug penetrates Wall. Map ----- +----------------------------------------------------+ | ###?????#### " " | | ???????????### | | ?????????????### | | ???????????????## | | ????????????????## | | ?????????????????##" | | ??????????????????#""" """""" | | ?????????????????##" ######""" | | ?????????????????#"" ""##????#####""" | | ?????????????????#""" """##?????????##"" | | ?????????????????""" """##???????????#"" | | ????????????????#""" ""#???????????##"" | | ????????????????#"" ########??####""" | | ????????????????#""" ## ####""" | | ????????????????#"" t """" | | ????????????????##"" | | ?????????????????#"""" | | ??????????????????# | | ??????????????????#" " "" | | ??????????????????#"""" a ""## ##""" | | ??????????????????#"" ""#### ###### | | ??????????????????#" ""##??# #????# | | ??????????????????#""" g ""#???# #????? | | ??????????????????## ""##???! ????? | | ???????????????????#"" % ""##????" ????? | | ???????????????????##""" @ ##????#" ???? | | ????????????????????##""" ##?????#!!""!???? | | ?????????????????????### #??????#######??? | | ???????????????????????##### ##???????????????? | | ??????????????????????????# # #????????????????? | | ??????????????????????????### #????????????????? | | ????????????????????????????# % #????????????????? | | ????????????????????????????# #????????????????? | | ###???????????????####??????# *%#????????????????? | | """?????""""""???#""""""????#%=%#????????????????? | | ""???#"""""""#??#"""""""#??#%= #????????????????? | | "#"""""""" "#??#" """"#??# #????????????????? | | ""#""#""" """#??#"" """#### #????????????????? | | "?#""#"" ""????"" ""?# =%[[#????????????????? | | "###""###"""########"""#### = % ########?????????? | | """"""" """""""" """"!!% !"""""""#????"????? | | """""" """"""" * %!! = #"" ""#???? | | %=!!!] " ""#???? | | !! % " " "#???? | | ! " """#???? | | "" "" #"" ""????? | | """""" " """"" " """" """""#"""""#???? | | "########"""###""###"""########"""######?####????? | | "?????"" ""#""#"" ""????"" ""?????????????? | | ""?????""" ""#""#""" ""????"" """?????????????? | +----------------------------------------------------+ Best States ------------- Heat Dissipation 45 Energy Generation 14 Energy Capacity 250 Matter Stores 300 Matter Capacity 300 Sight Range 16 Terrain Scan Density 10 Armor Coverage 150 Evasion (%) 45 Recoil Reduction 2 Offensive Hacking 7 Item Schematics ----------------- None Robot Schematics ------------------ None Fabricated ------------ Nothing Alien Tech Used ----------------- None Achievements -------------- None Challenges ------------ None RPGLIKE | -11 -10 -10 -10 --------- Run | Scr Mat Min Exi Levels Raised 1 | . 1 . . XP Earned 5950 | 3000 1600 1000 350 XP Spent 4250 | 2950 1300 . . Upgrades 8 | 6 2 . . Propulsion Slot 1 | 1 . . . Utility Slot 2 | 1 1 . . Weapon Slot 2 | 2 . . . Inventory Capacity 2 | 1 1 . . Ranged Accuracy 1 | 1 . . . Protomatter Created 303 | . 264 39 . Integrity Restored 344 | . 233 111 . Core 247 | . 154 93 . Parts 97 | . 79 18 . Protomatter Decayed 178 | . 178 . . Game ------ Seed NullDeuteriumStorage Manual? 0 Play Time 00:26:51 Cumulative 359.6 hours Start 2020.01.18 @ 20:53:56 End 2020.01.18 @ 21:22:58 Sessions 1 Manual Loads 0 Difficulty Rogue Special Mode Winter2019/RPGLIKE Game No. 201 Rogue 192 Adventurer 0 Explorer 9 Win Type - Total 14 Types 6/0/6/2/0/0/0 Lore% 75 Gallery% 81 Achievement% 46 Wizard Run 0 Options --------- ASCII 1 Keyboard 0 Movement Arrows Keybinds 1 Fullscreen 2 Font 12/Smallcaps Map View 83x54 Tactical HUD 1 Map Filters NONE Filters NONE Steam 1 RUN: f695c7f5-9f53-4c17-8e36-4784699ee35a